fUSD/lending_fUSD_20260615
["ID","MTS","AMOUNT","RATE_DAILY","PERIOD"]
[425101528,1781498961000,-436.5075679,0.00013115,2]
[425101526,1781498961000,-1440.98771749,0.00013111,2]
[425101525,1781498961000,-625.45531084,0.00013111,2]
[425101523,1781498961000,-2000.0,0.000131,2]
[425101524,1781498961000,-2500.0,0.000131,2]
[425101521,1781498961000,-250.0,0.00012934,2]
[425101529,1781498961000,-910.68163318,0.00013157,2]
[425101522,1781498961000,-162.97,0.00013072,2]
[425101520,1781498961000,-2499.44,0.00012898,2]
[425101518,1781498961000,-162.86,0.00012812,2]
[425101516,1781498961000,-150.0,0.00012758,2]
[425101515,1781498961000,-4775.72491472,0.00012757,2]
[425101517,1781498961000,-150.0,0.00012783,2]
[425101519,1781498961000,-150.0,0.00012888,2]
[425101513,1781498961000,-1025.81618408,0.00012757,2]
[425101544,1781498962000,-500.0,0.00013299,2]
[425101546,1781498962000,-500.0,0.00013299,2]
[425101542,1781498962000,-1066.9931652,0.00013299,3]
[425101543,1781498962000,-11090.00749404,0.00013299,2]
[425101540,1781498962000,-7144.19885508,0.00013257,2]
[425101539,1781498962000,-1500000.0,0.000132,2]
[425101541,1781498962000,-151.0,0.00013297,2]
[425101535,1781498962000,-500.0,0.00013199,2]
[425101536,1781498962000,-500.0,0.00013199,2]
[425101534,1781498962000,-500.0,0.00013199,2]
[425101533,1781498962000,-500.0,0.00013199,2]
[425101531,1781498962000,-427.57619248,0.00013199,2]
[425101532,1781498962000,-500.0,0.00013199,2]
[425101545,1781498962000,-500.0,0.00013299,2]
[425101538,1781498962000,-3000.0,0.00013199,2]
[425101547,1781498962000,-500.0,0.00013299,2]
[425101537,1781498962000,-500.0,0.00013199,2]
[425101549,1781498962000,-500.0,0.00013299,2]
[425101548,1781498962000,-500.0,0.00013299,2]
[425101564,1781498962000,-500.0,0.00013699,2]
[425101563,1781498962000,-2500.0,0.00013699,2]
[425101562,1781498962000,-500.0,0.00013698,2]
[425101561,1781498962000,-207.98190929,0.00013698,2]
[425101558,1781498962000,-500.0,0.00013698,2]
[425101560,1781498962000,-500.0,0.00013698,2]
[425101559,1781498962000,-500.0,0.00013698,2]
[425101557,1781498962000,-500.0,0.00013697,2]
[425101555,1781498962000,-255.10459113,0.000135,7]
[425101554,1781498962000,-21366.24,0.00013461,2]
[425101553,1781498962000,-104859.1178051,0.00013408,2]
[425101552,1781498962000,-169.47,0.00013315,2]
[425101551,1781498962000,-500.0,0.00013299,2]
[425101550,1781498962000,-500.0,0.00013299,2]
[425101556,1781498962000,-500.0,0.0001358,2]
[425101573,1781498963000,-6386.25,0.000145,2]
[425101582,1781498963000,-500.0,0.00014979,2]
[425101579,1781498963000,-500.0,0.00014899,2]
[425101577,1781498963000,-500.0,0.00014899,2]
[425101576,1781498963000,-736.08,0.00014656,2]
[425101578,1781498963000,-500.0,0.00014899,2]
[425101574,1781498963000,-150.99,0.00014504,2]
[425101566,1781498963000,-255.0,0.00013847,2]
[425101571,1781498963000,-1440.98771749,0.00014032,2]
[425101570,1781498963000,-625.45531077,0.00014032,2]
[425101569,1781498963000,-805.79,0.00014016,2]
[425101568,1781498963000,-250.0,0.00014,2]
[425101567,1781498963000,-170.42,0.00013939,2]
[425101565,1781498963000,-545.31891734,0.00013699,2]
[425101580,1781498963000,-625.45531077,0.00014952,2]
[425101572,1781498963000,-162.97,0.00014068,2]
[425101581,1781498963000,-1440.98771749,0.00014952,2]
[425101575,1781498963000,-151.0,0.0001463,2]
[425101586,1781498963000,-500.0,0.00014979,2]
[425101600,1781498963000,-1619.60867713,0.00014999,2]
[425101599,1781498963000,-152.0,0.0001498,3]
[425101601,1781498963000,-500.0,0.00014999,2]
[425101598,1781498963000,-152.0,0.0001498,3]
[425101596,1781498963000,-152.0,0.0001498,3]
[425101595,1781498963000,-152.0,0.0001498,3]
[425101583,1781498963000,-500.0,0.00014979,2]
[425101593,1781498963000,-500.0,0.00014979,2]
[425101597,1781498963000,-152.0,0.0001498,3]
[425101594,1781498963000,-500.0,0.00014979,2]
[425101591,1781498963000,-500.0,0.00014979,2]
[425101590,1781498963000,-500.0,0.00014979,2]
[425101589,1781498963000,-500.0,0.00014979,2]
[425101588,1781498963000,-500.0,0.00014979,2]
[425101587,1781498963000,-509.13283016,0.00014979,2]
[425101584,1781498963000,-504.7229529,0.00014979,2]
[425101585,1781498963000,-500.0,0.00014979,2]
[425101592,1781498963000,-500.0,0.00014979,2]
[425101602,1781498964000,-500.0,0.00014999,2]
[425101603,1781498964000,-464869.92064214,0.00015,2]
[425101604,1781498964000,-429.19083314,0.00015,2]
[425101605,1781498964000,-339.87,0.00015,2]
[425101607,1781498964000,-29817.7706135,0.00015,2]
[425101608,1781498964000,-37062.9002575,0.00015,2]
[425101609,1781498964000,-2000.0,0.00015,2]
[425101610,1781498964000,-200.0,0.00015,2]
[425101612,1781498964000,-1118.3522884,0.00015,2]
[425101613,1781498964000,-200.0,0.00015,2]
[425101611,1781498964000,-29521.9833301,0.00015,2]
[425101606,1781498964000,-200.0,0.00015,2]
[425101614,1781498966000,18974.02723772,0.000131,2]
[425101634,1781499032000,-500.0,0.00014999,2]
[425101632,1781499032000,-500.0,0.0001411,2]
[425101630,1781499032000,-151.0,0.0001326,2]
[425101629,1781499032000,-151.0,0.0001326,2]
[425101631,1781499032000,-500.0,0.00013407,2]
[425101628,1781499032000,-151.0,0.0001326,2]
[425101627,1781499032000,-151.0,0.0001326,2]
[425101626,1781499032000,-500.0,0.00013199,2]
[425101620,1781499032000,-162.23996115,0.00013157,2]
[425101623,1781499032000,-500.0,0.00013199,2]
[425101624,1781499032000,-500.0,0.00013199,2]
[425101622,1781499032000,-500.0,0.00013199,2]
[425101617,1781499032000,-483.87924797,0.00012017,2]
[425101621,1781499032000,-500.0,0.00013199,2]
[425101619,1781499032000,-4182.1809,0.000131,2]
[425101616,1781499032000,-500.0,0.00012017,2]
[425101635,1781499032000,-305.88,0.00015,2]
[425101625,1781499032000,-500.0,0.00013199,2]
[425101636,1781499032000,-200.0,0.00015,2]
[425101618,1781499032000,-2000.0,0.000131,2]
[425101637,1781499032000,-150.0,0.00015068,2]
[425101633,1781499032000,-500.0,0.00014999,2]
[425101651,1781499032000,-200.0,0.00015455,2]
[425101653,1781499032000,-167.149503,0.00015484,2]
[425101652,1781499032000,-445.64,0.00015466,2]
[425101656,1781499032000,-344.0,0.0001552,2]
[425101654,1781499032000,-246.595479,0.00015484,2]
[425101650,1781499032000,-200.0,0.00015455,2]
[425101648,1781499032000,-215.466156,0.00015402,2]
[425101649,1781499032000,-537.1,0.0001545,2]
[425101655,1781499032000,-311.24750232,0.0001552,2]
[425101644,1781499032000,-200.0,0.00015301,2]
[425101639,1781499032000,-200.0,0.0001515,2]
[425101642,1781499032000,-445.64,0.00015216,2]
[425101647,1781499032000,-8227.50240847,0.000154,2]
[425101646,1781499032000,-299.99,0.0001531,2]
[425101643,1781499032000,-300.05,0.00015217,2]
[425101638,1781499032000,-200.0,0.0001515,2]
[425101641,1781499032000,-164.92,0.00015192,2]
[425101640,1781499032000,-200.0,0.0001515,2]
[425101645,1781499032000,-200.0,0.00015301,2]
[425101674,1781499038000,-445.64,0.00015649,2]
[425101677,1781499038000,-8227.50240847,0.000158,2]
[425101680,1781499038000,-1440.98771749,0.00015873,2]
[425101681,1781499038000,-445.64,0.00015877,2]
[425101682,1781499038000,-6030.83863997,0.000159,2]
[425101689,1781499038000,-445.64,0.00016007,2]
[425101685,1781499038000,-349.81883826,0.000159,2]
[425101687,1781499038000,-445.64,0.00015966,2]
[425101686,1781499038000,-445.64,0.00015923,2]
[425101676,1781499038000,-445.64,0.00015775,2]
[425101684,1781499038000,-678.9113006,0.000159,2]
[425101679,1781499038000,-625.45531077,0.00015873,2]
[425101664,1781499038000,-1368.7696,0.000131,2]
[425101675,1781499038000,-445.64,0.00015716,2]
[425101673,1781499038000,-200.0,0.00015609,2]
[425101672,1781499038000,-200.0,0.00015609,2]
[425101671,1781499038000,-8227.50240847,0.000156,2]
[425101670,1781499038000,-1500.0,0.00015577,2]
[425101668,1781499038000,-445.64,0.00015569,2]
[425101669,1781499038000,-805.79,0.00015574,2]
[425101666,1781499038000,-255.43413086,0.0001552,2]
[425101688,1781499038000,-300.0,0.00016,2]
[425101667,1781499038000,-200.35354925,0.00015561,2]
[425101665,1781499038000,-9340.22,0.00015073,2]
[425101678,1781499038000,-445.64,0.00015828,2]
[425101699,1781499038000,-445.64,0.00016184,2]
[425101683,1781499038000,-1167.93362964,0.000159,2]
[425101690,1781499038000,-162.86,0.00016015,2]
[425101728,1781499038000,-290.0,0.00016438,2]
[425101730,1781499038000,-445.64,0.00016441,2]
[425101726,1781499038000,-741.3,0.00016438,2]
[425101724,1781499038000,-445.64,0.00016415,2]
[425101722,1781499038000,-8227.50240847,0.000164,2]
[425101707,1781499038000,-445.64,0.00016277,2]
[425101720,1781499038000,-445.64,0.00016389,2]
[425101712,1781499038000,-300.16,0.00016349,2]
[425101716,1781499038000,-445.64,0.00016362,2]
[425101718,1781499038000,-500.0,0.00016381,2]
[425101703,1781499038000,-445.64,0.00016216,2]
[425101691,1781499038000,-300.05,0.00016018,2]
[425101709,1781499038000,-445.64,0.00016306,2]
[425101710,1781499038000,-445.64,0.00016334,2]
[425101701,1781499038000,-8227.50240847,0.000162,2]
[425101705,1781499038000,-445.64,0.00016247,2]
[425101700,1781499038000,-9340.22,0.00016195,2]
[425101697,1781499038000,-1555.5,0.00016125,2]
[425101698,1781499038000,-445.64,0.00016152,2]
[425101733,1781499038000,-445.64,0.00016466,2]
[425101694,1781499038000,-8227.50240847,0.000161,2]
[425101693,1781499038000,-445.64,0.00016082,2]
[425101695,1781499038000,-445.64,0.00016117,2]
[425101696,1781499038000,-736.08,0.00016122,2]
[425101692,1781499038000,-445.64,0.00016045,2]
[425101714,1781499038000,-300.05,0.00016349,2]
[425101735,1781499039000,-445.64,0.00016491,2]
[425101740,1781499039000,-445.64,0.00016563,2]
[425101737,1781499039000,-445.64,0.00016515,2]
[425101744,1781499039000,-7064.63245703,0.000166,2]
[425101739,1781499039000,-445.64,0.00016539,2]
[425101742,1781499039000,-445.64,0.00016586,2]
[425101875,1781499042000,-537.1,0.00016995,2]
[425101881,1781499042000,-1125.99999999,0.00017455,2]
[425101874,1781499042000,-8227.50240847,0.000169,2]
[425101878,1781499042000,-191.664402,0.00017169,2]
[425101872,1781499042000,-300.16,0.00016818,2]
[425101870,1781499042000,-300.03,0.00016817,2]
[425101868,1781499042000,-1440.98771749,0.00016794,2]
[425101866,1781499042000,-445.64,0.00016778,2]
[425101862,1781499042000,-445.64,0.00016716,2]
[425101858,1781499042000,-445.64,0.00016695,2]
[425101863,1781499042000,-445.64,0.00016737,2]
[425101860,1781499042000,-8227.50240847,0.000167,2]
[425101864,1781499042000,-9666.3501,0.00016757,2]
[425101867,1781499042000,-625.45531077,0.00016794,2]
[425101865,1781499042000,-445.64,0.00016758,2]
[425101859,1781499042000,-500.0,0.00016699,2]
[425101869,1781499042000,-445.64,0.00016798,2]
[425101855,1781499042000,-9340.22,0.0001666,2]
[425101854,1781499042000,-445.64,0.00016653,2]
[425101856,1781499042000,-1613.0535,0.00016673,2]
[425101857,1781499042000,-445.64,0.00016674,2]
[425101853,1781499042000,-445.64,0.00016631,2]
[425101852,1781499042000,-445.64,0.00016608,2]
[425101850,1781499042000,-1162.86995144,0.000166,2]
[425101851,1781499042000,-300.05,0.00016604,2]
[425101877,1781499042000,-805.79,0.00017131,2]
[425101861,1781499042000,-168.44,0.00016712,2]
[425101873,1781499042000,-300.05,0.00016818,2]
[425101882,1781499042000,-179.009224,0.00017493,2]
[425101880,1781499042000,-250.0,0.00017385,2]
[425101871,1781499042000,-445.64,0.00016817,2]
[425101907,1781499042000,-150.0,0.00018547,2]
[425101904,1781499042000,-537.1,0.0001854,2]
[425101899,1781499042000,-910.68163318,0.00017884,2]
[425101906,1781499042000,-150.0,0.00018547,2]
[425101898,1781499042000,-3992.57792136,0.00017863,2]
[425101900,1781499042000,-350.0,0.00018,2]
[425101903,1781499042000,-741.3,0.0001841,2]
[425101902,1781499042000,-1798.80895522,0.00018317,2]
[425101895,1781499042000,-1734.62772924,0.00017769,2]
[425101896,1781499042000,-10000.0,0.0001785,2]
[425101897,1781499042000,-10000.0,0.00017858,2]
[425101894,1781499042000,-1440.98771749,0.00017714,2]
[425101905,1781499042000,-150.0,0.00018547,2]
[425101890,1781499042000,-736.08,0.00017588,2]
[425101891,1781499042000,-191.664402,0.00017684,2]
[425101893,1781499042000,-625.45531077,0.00017714,2]
[425101883,1781499042000,-1364.377,0.00017547,2]
[425101889,1781499042000,-419.0,0.00017547,2]
[425101879,1781499042000,-1672.7364795,0.00017221,2]
[425101885,1781499042000,-1275.0,0.00017547,2]
[425101886,1781499042000,-631.398,0.00017547,2]
[425101876,1781499042000,-502.0,0.00017041,2]
[425101887,1781499042000,-383.0,0.00017547,2]
[425101892,1781499042000,-159.01922025,0.0001771,2]
[425101888,1781499042000,-934.0,0.00017547,2]
[425101884,1781499042000,-3558.0,0.00017547,2]
[425101953,1781499043000,-1743.0,0.0002,2]
[425101954,1781499043000,-201.0,0.0002,2]
[425101950,1781499043000,-400.0,0.0002,2]
[425101949,1781499043000,-1418.689983,0.0002,2]
[425101942,1781499043000,-1440.98771749,0.00019556,2]
[425101948,1781499043000,-1479.0,0.0002,2]
[425101947,1781499043000,-100000.0,0.0002,2]
[425101946,1781499043000,-173.53935065,0.0002,2]
[425101945,1781499043000,-151.0,0.00019997,2]
[425101951,1781499043000,-2428.0,0.0002,2]
[425101952,1781499043000,-560.0,0.0002,2]
[425101955,1781499043000,-172.0,0.0002,2]
[425101961,1781499043000,-249.0,0.0002,2]
[425101957,1781499043000,-229.0,0.0002,2]
[425101962,1781499043000,-404.0,0.0002,2]
[425101967,1781499043000,-170.42,0.00020211,2]
[425101958,1781499043000,-249.0,0.0002,2]
[425101959,1781499043000,-833.0,0.0002,2]
[425101965,1781499043000,-7800.92,0.0002,2]
[425101963,1781499043000,-287.0,0.0002,2]
[425101964,1781499043000,-156.0,0.0002,2]
[425101966,1781499043000,-500.0,0.00020144,2]
[425101968,1781499043000,-162.23996114,0.00020227,2]
[425101960,1781499043000,-156.0,0.0002,2]
[425101943,1781499043000,-458.15547152,0.000199,2]
[425101969,1781499043000,-910.68163318,0.00020247,2]
[425101970,1781499043000,-180.08459866,0.00020292,2]
[425101956,1781499043000,-627.0,0.0002,2]
[425101939,1781499043000,-1934.38338736,0.00019413,2]
[425101924,1781499043000,-1865.36488656,0.00018865,2]
[425101941,1781499043000,-625.45531077,0.00019556,2]
[425101971,1781499043000,-741.3,0.00020381,2]
[425101908,1781499043000,-150.425,0.00018547,2]
[425101911,1781499043000,-625.45531077,0.00018635,2]
[425101909,1781499043000,-190.0,0.00018547,2]
[425101917,1781499043000,-1846.32,0.0001872,2]
[425101918,1781499043000,-579.04,0.0001872,2]
[425101914,1781499043000,-1440.98771749,0.00018635,2]
[425101916,1781499043000,-805.79,0.00018689,2]
[425101920,1781499043000,-5374.0,0.0001872,2]
[425101923,1781499043000,-553.0,0.00018767,5]
[425101921,1781499043000,-319.0,0.00018767,5]
[425101922,1781499043000,-551.0,0.00018767,5]
[425101925,1781499043000,-151.0,0.00018872,2]
[425101933,1781499043000,-748.54,0.00019069,2]
[425101934,1781499043000,-309.89220436,0.00019183,2]
[425101928,1781499043000,-157.37535454,0.00018877,2]
[425101929,1781499043000,-899.86,0.000189,2]
[425101927,1781499043000,-200.72513036,0.00018872,2]
[425101926,1781499043000,-156.587,0.00018872,2]
[425101932,1781499043000,-1308.0,0.00019,2]
[425101931,1781499043000,-303.73,0.00019,2]
[425101930,1781499043000,-811.0,0.00018986,5]
[425101936,1781499043000,-162.86,0.00019219,2]
[425101935,1781499043000,-302.63,0.00019186,2]
[425101938,1781499043000,-9252.66,0.00019339,2]
[425101937,1781499043000,-12758.93,0.00019339,2]
[425101944,1781499043000,-2005.9555727,0.00019961,2]
[425101940,1781499043000,-273.45,0.0001947,2]
[425101974,1781499043000,-1440.98771749,0.00020476,2]
[425102020,1781499043000,-2080.17592889,0.00020509,2]
[425101972,1781499043000,-899.86,0.000204,2]
[425102008,1781499043000,-1592.87721992,0.00020509,2]
[425102007,1781499043000,-151.0,0.00020509,2]
[425102005,1781499043000,-721.12765534,0.00020509,2]
[425102010,1781499043000,-500.0,0.00020509,2]
[425102021,1781499043000,-209.40437684,0.00020509,2]
[425102011,1781499043000,-151.0,0.00020509,2]
[425102012,1781499043000,-151.0,0.00020509,2]
[425102009,1781499043000,-209.40437684,0.00020509,2]
[425102017,1781499043000,-500.0,0.00020509,2]
[425102014,1781499043000,-500.0,0.00020509,2]
[425102016,1781499043000,-151.0,0.00020509,2]
[425102015,1781499043000,-151.0,0.00020509,2]
[425102018,1781499043000,-500.0,0.00020509,2]
[425102019,1781499043000,-151.0,0.00020509,2]
[425102022,1781499043000,-151.0,0.00020509,2]
[425102026,1781499043000,-151.0,0.00020509,2]
[425102027,1781499043000,-500.0,0.00020509,2]
[425102024,1781499043000,-151.0,0.00020509,2]
[425102033,1781499043000,-209.40437684,0.00020509,2]
[425102030,1781499043000,-500.0,0.00020509,2]
[425102028,1781499043000,-151.0,0.00020509,2]
[425102023,1781499043000,-500.0,0.00020509,2]
[425102029,1781499043000,-151.0,0.00020509,2]
[425102031,1781499043000,-500.0,0.00020509,2]
[425102025,1781499043000,-500.0,0.00020509,2]
[425102032,1781499043000,-152.0,0.00020509,2]
[425101981,1781499043000,-1068.11,0.00020509,2]
[425101997,1781499043000,-1377.42282658,0.00020509,2]
[425101999,1781499043000,-500.0,0.00020509,2]
[425102013,1781499043000,-500.0,0.00020509,2]
[425102004,1781499043000,-500.0,0.00020509,2]
[425101973,1781499043000,-625.45531077,0.00020476,2]
[425102002,1781499043000,-151.0,0.00020509,2]
[425101982,1781499043000,-151.0,0.00020509,2]
[425101979,1781499043000,-151.0,0.00020509,2]
[425101975,1781499043000,-339.72988711,0.00020509,2]
[425101976,1781499043000,-200.0,0.00020509,2]
[425101978,1781499043000,-1030.0,0.00020509,2]
[425101977,1781499043000,-209.40437684,0.00020509,2]
[425101995,1781499043000,-1328.27659266,0.00020509,2]
[425101984,1781499043000,-151.0,0.00020509,2]
[425101994,1781499043000,-151.0,0.00020509,2]
[425101986,1781499043000,-154.67963625,0.00020509,2]
[425101987,1781499043000,-151.0,0.00020509,2]
[425101985,1781499043000,-1148.61238259,0.00020509,2]
[425101980,1781499043000,-358.31816607,0.00020509,2]
[425102001,1781499043000,-1481.2378076,0.00020509,2]
[425102006,1781499043000,-151.0,0.00020509,2]
[425101983,1781499043000,-1107.63007,0.00020509,2]
[425102000,1781499043000,-1428.38747117,0.00020509,2]
[425102003,1781499043000,-1536.04360648,0.00020509,2]
[425101996,1781499043000,-151.0,0.00020509,2]
[425101992,1781499043000,-1280.88388877,0.00020509,2]
[425101998,1781499043000,-151.0,0.00020509,2]
[425101990,1781499043000,-151.0,0.00020509,2]
[425101989,1781499043000,-578.20924308,0.00020509,2]
[425101991,1781499043000,-1235.18214925,0.00020509,2]
[425101988,1781499043000,-1191.11104074,0.00020509,2]
[425101993,1781499043000,-174.61919141,0.00020509,2]
[425102076,1781499044000,-934.0,0.00020547,2]
[425102082,1781499044000,-151.0,0.00020619,2]
[425102075,1781499044000,-383.0,0.00020547,2]
[425102083,1781499044000,-358.31816607,0.00020674,2]
[425102077,1781499044000,-419.0,0.00020547,2]
[425102081,1781499044000,-358.31816607,0.00020619,2]
[425102063,1781499044000,-151.0,0.00020509,2]
[425102069,1781499044000,-200.0,0.00020515,2]
[425102068,1781499044000,-152.0,0.00020509,2]
[425102064,1781499044000,-500.0,0.00020509,2]
[425102065,1781499044000,-152.0,0.00020509,2]
[425102080,1781499044000,-151.0,0.00020564,2]
[425102073,1781499044000,-631.0,0.00020547,2]
[425102078,1781499044000,-9978.39,0.00020548,2]
[425102089,1781499044000,-358.31816607,0.00020784,2]
[425102084,1781499044000,-151.0,0.00020674,2]
[425102086,1781499044000,-2000.0,0.000207,2]
[425102085,1781499044000,-1608.66,0.000207,2]
[425102087,1781499044000,-358.31816607,0.00020729,2]
[425102097,1781499044000,-358.31816607,0.00020949,2]
[425102099,1781499044000,-2692.68900525,0.00020989,2]
[425102096,1781499044000,-151.0,0.00020894,2]
[425102098,1781499044000,-151.0,0.00020949,2]
[425102088,1781499044000,-151.0,0.00020729,2]
[425102090,1781499044000,-151.0,0.00020784,2]
[425102091,1781499044000,-358.31816607,0.00020839,2]
[425102093,1781499044000,-1350.0,0.00020857,2]
[425102070,1781499044000,-1359.0,0.00020547,2]
[425102079,1781499044000,-358.31816607,0.00020564,2]
[425102067,1781499044000,-152.0,0.00020509,2]
[425102036,1781499044000,-500.0,0.00020509,2]
[425102066,1781499044000,-152.0,0.00020509,2]
[425102092,1781499044000,-151.0,0.00020839,2]
[425102034,1781499044000,-151.0,0.00020509,2]
[425102046,1781499044000,-151.0,0.00020509,2]
[425102041,1781499044000,-151.0,0.00020509,2]
[425102037,1781499044000,-500.0,0.00020509,2]
[425102038,1781499044000,-152.0,0.00020509,2]
[425102035,1781499044000,-151.0,0.00020509,2]
[425102040,1781499044000,-151.0,0.00020509,2]
[425102039,1781499044000,-500.0,0.00020509,2]
[425102045,1781499044000,-152.0,0.00020509,2]
[425102042,1781499044000,-731.92164327,0.00020509,2]
[425102044,1781499044000,-500.0,0.00020509,2]
[425102043,1781499044000,-500.0,0.00020509,2]
[425102047,1781499044000,-151.0,0.00020509,2]
[425102049,1781499044000,-151.0,0.00020509,2]
[425102052,1781499044000,-500.0,0.00020509,2]
[425102058,1781499044000,-151.0,0.00020509,2]
[425102051,1781499044000,-152.0,0.00020509,2]
[425102050,1781499044000,-151.0,0.00020509,2]
[425102059,1781499044000,-152.0,0.00020509,2]
[425102048,1781499044000,-500.0,0.00020509,2]
[425102056,1781499044000,-500.0,0.00020509,2]
[425102054,1781499044000,-151.0,0.00020509,2]
[425102055,1781499044000,-152.0,0.00020509,2]
[425102057,1781499044000,-151.0,0.00020509,2]
[425102061,1781499044000,-151.0,0.00020509,2]
[425102072,1781499044000,-1275.0,0.00020547,2]
[425102060,1781499044000,-500.0,0.00020509,2]
[425102071,1781499044000,-3558.0,0.00020547,2]
[425102062,1781499044000,-152.0,0.00020509,2]
[425102094,1781499044000,-450.0,0.00020857,7]
[425102053,1781499044000,-151.0,0.00020509,2]
[425102100,1781499044000,-274.81922984,0.00021,30]
[425102133,1781499044000,-358.31816616,0.00021059,2]
[425102127,1781499044000,-154.67963625,0.00021057,2]
[425102131,1781499044000,-278.27669356,0.00021057,2]
[425102135,1781499044000,-378.31669706,0.000212,2]
[425102132,1781499044000,-217.15233878,0.00021057,2]
[425102140,1781499044000,-899.86,0.000214,2]
[425102151,1781499044000,-209.129083,0.00021497,2]
[425102162,1781499044000,-151.0,0.00021497,2]
[425102139,1781499044000,-378.31669706,0.000214,2]
[425102143,1781499044000,-156.270967,0.00021497,2]
[425102152,1781499044000,-222.064043,0.00021497,2]
[425102141,1781499044000,-374.8986729,0.00021493,2]
[425102142,1781499044000,-151.0,0.00021497,2]
[425102150,1781499044000,-151.0,0.00021497,2]
[425102145,1781499044000,-151.0,0.00021497,2]
[425102146,1781499044000,-151.0,0.00021497,2]
[425102148,1781499044000,-151.0,0.00021497,2]
[425102144,1781499044000,-151.0,0.00021497,2]
[425102149,1781499044000,-151.0,0.00021497,2]
[425102147,1781499044000,-151.0,0.00021497,2]
[425102153,1781499044000,-222.064043,0.00021497,2]
[425102155,1781499044000,-222.064043,0.00021497,2]
[425102156,1781499044000,-151.0,0.00021497,2]
[425102154,1781499044000,-222.064043,0.00021497,2]
[425102158,1781499044000,-151.0,0.00021497,2]
[425102157,1781499044000,-151.0,0.00021497,2]
[425102159,1781499044000,-151.0,0.00021497,2]
[425102161,1781499044000,-151.0,0.00021497,2]
[425102160,1781499044000,-151.0,0.00021497,2]
[425102136,1781499044000,-1000.0,0.00021233,2]
[425102134,1781499044000,-151.0,0.00021059,2]
[425102095,1781499044000,-358.31816607,0.00020894,2]
[425102138,1781499044000,-1440.98771749,0.00021397,2]
[425102129,1781499044000,-151.0,0.00021057,2]
[425102102,1781499044000,-15000.0,0.00021,2]
[425102101,1781499044000,-378.31669706,0.00021,2]
[425102103,1781499044000,-6111.0,0.00021,2]
[425102111,1781499044000,-627.0,0.00021,2]
[425102110,1781499044000,-899.86,0.00021,2]
[425102109,1781499044000,-172.0,0.00021,2]
[425102112,1781499044000,-229.0,0.00021,2]
[425102106,1781499044000,-560.0,0.00021,2]
[425102105,1781499044000,-1418.689983,0.00021,2]
[425102107,1781499044000,-1743.0,0.00021,2]
[425102108,1781499044000,-201.0,0.00021,2]
[425102114,1781499044000,-833.0,0.00021,2]
[425102124,1781499044000,-200.0,0.00021057,2]
[425102104,1781499044000,-11111.0,0.00021,2]
[425102113,1781499044000,-249.0,0.00021,2]
[425102125,1781499044000,-217.15233878,0.00021057,2]
[425102137,1781499044000,-625.45531077,0.00021397,2]
[425102130,1781499044000,-2157.14243826,0.00021057,2]
[425102126,1781499044000,-151.0,0.00021057,2]
[425102122,1781499044000,-151.0,0.00021004,2]
[425102123,1781499044000,-339.72988711,0.00021057,2]
[425102128,1781499044000,-181.08010149,0.00021057,2]
[425102119,1781499044000,-287.0,0.00021,2]